[Event "FIDE WY-U16 Olympuad 2022"]
[Site "Nakhchivan"]
[Date "2022.10.03"]
[Round "2.13"]
[White "Samadov, Read"]
[Black "Orozbaev, Eldiar"]
[Result "1/2-1/2"]
[ECO "A41"]
[WhiteElo "2455"]
[BlackElo "2369"]
[Annotator "TA"]
[PlyCount "167"]
[EventDate "2022.10.02"]
[EventType "team-tourn"]
[EventCountry "AZE"]
[SourceTitle "playchess.com"]
[Source "ChessBase"]
[SourceQuality "1"]
[WhiteTeam "Azerbaijan"]
[BlackTeam "Kyrgyzstan"]
[WhiteTeamCountry "AZE"]
[BlackTeamCountry "KGZ"]
[TimeControl "40/5400+30:1800+30"]

{[%evp 21,167,39,54,42,32,36,38,39,45,34,70,60,58,12,107,107,107,107,108,109,107,102,121,118,122,122,134,127,147,133,133,133,194,185,183,187,192,186,186,197,198,181,213,212,236,236,306,289,470,445,404,370,368,360,350,335,303,243,243,243,243,243,243,243,243,243,243,243,243,243,243,243,243,243,314,314,314,314,314,314,314,314,314,0,314,314,314,314,314,314,314,314,314,0,530,530,530,314,314,314,530,530,522,537,589,314,314,314,314,314,571,552,586,575,589,589,589,589,589,575,587,587,580,561,543,596,595,554,581,294,573,0,560,0,580,0,545,445,504,293,293,293,293,293,293,293,293,204]} 1. d4 {[%emt 0:00:03]} d6 {[%emt 0:00:50]} 2. g3 {[%emt 0:01:25]} g6 {[%emt 0:02:18]} 3. Bg2 {[%emt 0:00:34]} Bg7 {[%emt 0:00:06]} 4. Nf3 {[%emt 0:00:41]} Nf6 {[%emt 0:01:40]} 5. O-O {[%emt 0:00:55]} O-O {[%emt 0:01:03]} 6. b3 {[%emt 0:04:40]} e5 {[%emt 0:08:05]} 7. dxe5 {[%emt 0:03:24]} Nfd7 {[%emt 0:00:05]} 8. Bb2 {[%emt 0:01:56]} Nc6 {[%emt 0:01:56]} 9. c4 {[%emt 0:04:06]} Ndxe5 {[%emt 0:03:24]} 10. Nxe5 {[%emt 0:04:23] 10.Nc3 is more advanced technology.} dxe5 {[%emt 0:02:48]} 11. Nc3 {[%emt 0:01:45]} Bg4 {[%emt 0:15:15]} 12. h3 {[%emt 0:04:23] A49: 1 d4 Nf6 2 Nf3 g6 3 g3: Anti-King's Indian systems.} Be6 {[%emt 0:00:07][%cal Oe5e4] [#]} 13. Ba3 $146 {[%emt 0:08:49]} ({Predecessor:} 13. Nd5 Qd7 14. Kh2 Rfd8 15. Qe1 Nd4 16. Rd1 c6 17. Nc3 Qe7 18. e3 Nf5 19. Ne4 Rxd1 20. Qxd1 Rd8 21. Qe2 Qd7 22. Bc3 b6 23. Ng5 h6 24. Nxe6 Qxe6 25. Rd1 Rd6 26. Rxd6 {½-½ (26) Aranda Flores,J (2158)-Llaneza Vega,P (2152) Barcelona 2019}) 13... Re8 {[%emt 0:04:31]} 14. Qxd8 {[%emt 0:02:18] White is slightly better.} Raxd8 {[%emt 0:00:58]} 15. Rad1 {[%emt 0:02:37]} Nd4 {[%emt 0:03:59][%cal Oe5e4]} 16. e3 {[%emt 0:07:47]} Nc2 {[%emt 0:00:29]} 17. Bb2 {[%emt 0:00:46]} (17. Bc1 $14) 17... Nb4 {[%emt 0:14:22] [#]} (17... e4 $1 $11 {keeps the balance.}) 18. Nb5 $1 $16 {[%emt 0:03:36]} c6 {[%emt 0:13:35]} 19. Nc7 {[%emt 0:08:55]} (19. Nxa7 Rxd1 20. Rxd1 Nxa2 $17) 19... Rf8 {[%emt 0:00:04]} 20. Nxe6 {[%emt 0:00:17]} fxe6 {[%emt 0:00:03]} 21. Be4 $36 {[%emt 0:01:51][%mdl 2048] Black is under strong pressure.} a5 {[%emt 0:07:03]} 22. a3 {[%emt 0:04:02]} Na6 {[%emt 0:00:01][%cal Bb4a6,Ba6c5,Bc5b3][%mdl 32]} 23. Bc3 {[%emt 0:01:44]} Nc5 {[%emt 0:01:04]} 24. Bc2 {[%emt 0:00:52] This bishop pair is nice.} a4 {[%emt 0:02:32]} 25. b4 {[%emt 0:03:04]} Nb3 {[%emt 0:00:17][%cal Oe5e4]} 26. Be4 {[%emt 0:00:52]} Bf6 {[%emt 0:02:59]} (26... c5 $16 27. b5 (27. Bxb7 e4 $16) 27... b6) 27. Kg2 $18 {[%emt 0:01:39][%cal Bg1g2,Bg2f1,Bf1e2][%mdl 32]} Be7 {[%emt 0:01:53]} 28. Rfe1 {[%emt 0:02:09]} (28. Bxe5 Nd2 29. Bc7 Nxf1 30. Bxd8 Nxe3+ 31. fxe3 Rxd8 $11) 28... Kf7 {[%emt 0:01:06]} 29. Kf1 {[%emt 0:01:03]} ({And not} 29. Bxe5 Nd2 30. Bc7 Nxe4 $11) 29... c5 {[%emt 0:04:23]} 30. b5 {[%emt 0:01:22]} b6 {[%emt 0:00:01]} 31. Ke2 {[%emt 0:01:01]} Bd6 {[%emt 0:00:06]} 32. h4 {[%emt 0:04:25]} h6 {[%emt 0:03:17]} 33. g4 {[%emt 0:01:46][%cal Bg3g4,Bg4g5][%mdl 32]} Rg8 {[%emt 0:00:28]} 34. g5 {[%emt 0:02:06]} h5 {[%emt 0:00:20]} (34... hxg5 {is a better defense.} 35. hxg5 Bc7) 35. Rh1 {[%emt 0:02:48]} Ke7 {[%emt 0:01:38]} 36. Rh3 {[%emt 0:03:32]} Rdf8 {[%emt 0:00:06]} 37. f4 {[%emt 0:06:04]} Bc7 {[%emt 0:02:08]} 38. fxe5 {[%emt 0:01:24]} Na5 {[%emt 0:01:54]} 39. Bd3 {[%emt 0:01:09]} Nb7 {[%emt 0:01:51] [#]} 40. Rf3 $1 {[%emt 0:01:03]} Rxf3 {[%emt 0:00:29]} 41. Kxf3 {[%emt 0:30:01]} Nd8 {[%emt 0:06:11]} 42. Rf1 {[%emt 0:00:00] Strongly threatening Ke4.} Rf8+ {[%emt 0:00:28]} 43. Kg2 {[%emt 0:00:00]} Rxf1 {[%emt 0:00:06]} 44. Kxf1 {[%emt 0:00:00][%mdl 4096] Endgame KBB-KBN} Kf7 {[%emt 0:00:03]} 45. Bc2 {[%emt 0:00:00]} Nb7 {[%emt 0:00:23]} 46. Ke2 {[%emt 0:00:00]} ({But not} 46. Bxa4 Na5) 46... Na5 {[%emt 0:05:11]} 47. Kd3 {[%emt 0:00:00]} ({Not} 47. Bxa4 Nxc4 48. Ba1 Bb8 $11) 47... Bd8 {[%emt 0:03:19]} 48. Bxa4 {[%emt 0:00:00]} Bc7 {[%emt 0:01:42]} 49. Bd1 {[%emt 0:00:53]} Bd8 {[%emt 0:00:10]} 50. Bf3 {[%emt 0:01:06]} Bc7 {[%emt 0:00:01]} 51. Be2 {[%emt 0:01:14]} Nb7 {[%emt 0:10:47]} 52. Bf3 {[%emt 0:01:00]} Na5 {[%emt 0:00:06]} 53. Bg2 {[%emt 0:00:18]} Kg7 {[%emt 0:00:34]} 54. Bh3 {[%emt 0:00:17]} Kf7 {[%emt 0:00:04]} 55. Bb2 {[%emt 0:00:48]} Nb7 {[%emt 0:00:44]} 56. Bf1 {[%emt 0:00:18]} Kg7 {[%emt 0:01:28]} 57. Bh3 $2 {[%emt 0:00:43]} ({White should try} 57. Ke4 $18) 57... Nd8 $2 {[%emt 0:00:28][%mdl 8192]} (57... Kf7 $1 $11 {and Black stays safe.} 58. Bg2 Na5) 58. Bc3 {[%emt 0:01:04]} Kf8 {[%emt 0:00:32]} 59. Ke4 {[%emt 0:01:08] Black must now prevent Kf4.} Ke7 {[%emt 0:00:16]} 60. Bg2 {[%emt 0:00:21]} Kf8 $2 {[%emt 0:01:02]} (60... Nb7 61. Kd3 Na5) 61. Kf4 {[%emt 0:00:26]} Kg7 {[%emt 0:00:29]} 62. Be4 {[%emt 0:00:13]} Kf7 {[%emt 0:00:01]} 63. Bd3 {[%emt 0:00:26] Be4 is the strong threat.} Kg7 {[%emt 0:00:19]} 64. Bc2 {[%emt 0:00:18] aiming for Be4.} Nb7 {[%emt 0:00:24]} 65. Kf3 {[%emt 0:00:24]} Nd8 $2 {[%emt 0:00:04]} (65... Na5 66. Bd3 Nb3) 66. Be4 {[%emt 0:00:18]} Nf7 {[%emt 0:00:09]} 67. a4 {[%emt 0:01:06]} Nd8 {[%emt 0:01:59]} 68. Ba8 {[%emt 0:01:30]} Kf8 {[%emt 0:00:56]} 69. Kf4 {[%emt 0:00:24]} Kg8 {[%emt 0:01:19]} 70. Ke4 {[%emt 0:00:22]} Nf7 {[%emt 0:01:28]} 71. Bc6 {[%emt 0:00:40]} Kf8 {[%emt 0:00:01]} 72. Kf4 {[%emt 0:00:27]} Nd8 {[%emt 0:00:33]} 73. Be4 {[%emt 0:01:20]} Kg7 {[%emt 0:01:18]} 74. Kf3 {[%emt 0:01:01]} Nf7 {[%emt 0:00:08]} 75. Bc6 {[%emt 0:00:53]} Kf8 $2 {[%emt 0:00:15]} (75... Nd8 {might work better.} 76. Be4 Nf7) 76. Kf4 {[%emt 0:00:36]} Nd8 $1 {[%emt 0:00:08]} 77. Be4 {[%emt 0:00:37]} Kg7 {[%emt 0:00:02]} 78. Kf3 {[%emt 0:00:21]} Nf7 {[%emt 0:00:02]} 79. Bd3 {[%emt 0:00:20]} Nd8 {[%emt 0:00:25]} 80. Ke2 {[%emt 0:00:49]} Nb7 {[%emt 0:00:05] White has a decisive advantage.} 81. Be4 {[%emt 0:00:41]} Na5 {[%emt 0:00:10]} 82. Kd3 {[%emt 0:00:19]} Kf7 {[%emt 0:00:06]} 83. Bf3 {[%emt 0:00:21]} Ke7 {[%emt 0:00:09]} 84. Ke4 {Weighted Error Value: White=0.18 (very precise) /Black=0.33} 1/2-1/2

[Event "FIDE WY-U16 Olympuad 2022"]
[Site "Nakhchivan"]
[Date "2022.10.03"]
[Round "2.15"]
[White "Suleymanli, Suleyman"]
[Black "Iunusov, Nuriddin"]
[Result "1-0"]
[ECO "E62"]
[WhiteElo "2304"]
[BlackElo "1940"]
[Annotator "TA"]
[PlyCount "63"]
[EventDate "2022.10.02"]
[EventType "team-tourn"]
[EventCountry "AZE"]
[SourceTitle "playchess.com"]
[Source "ChessBase"]
[SourceQuality "1"]
[WhiteTeam "Azerbaijan"]
[BlackTeam "Kyrgyzstan"]
[WhiteTeamCountry "AZE"]
[BlackTeamCountry "KGZ"]
[TimeControl "40/5400+30:1800+30"]

{[%evp 20,63,15,10,10,6,9,18,50,19,17,2,8,0,43,38,31,33,42,56,45,3,39,46,206,197,332,207,210,209,198,197,198,198,242,242,352,339,334,337,381,395,533,516,520,501]} 1. Nf3 {[%emt 0:00:02]} Nf6 {[%emt 0:00:28]} 2. g3 {[%emt 0:00:08]} g6 {[%emt 0:01:09]} 3. Bg2 {[%emt 0:00:13]} Bg7 {[%emt 0:00:05]} 4. O-O {[%emt 0:00:14]} O-O {[%emt 0:00:25]} 5. d4 {[%emt 0:00:05]} d6 {[%emt 0:00:19]} 6. c4 {[%emt 0:00:04]} Nc6 {[%emt 0:00:12]} 7. Nc3 {[%emt 0:00:04]} e5 {[%emt 0:01:52]} 8. dxe5 {[%emt 0:00:05]} Nxe5 {[%emt 0:00:18]} 9. Nxe5 {[%emt 0:00:24]} dxe5 {[%emt 0:00:39]} 10. Bg5 {[%emt 0:00:05]} Qxd1 {[%emt 0:07:48]} 11. Rfxd1 $1 {[%emt 0:00:09] The main line 11.Rfxd1 scores better than 11.Raxd1.} c6 {[%emt 0:05:58] Against Nb5. E62: King's Indian: Fianchetto: 6...c6 and Panno Variation (6...Nc6) without ...a6.} 12. h3 {[%emt 0:00:53]} h6 {[%emt 0:14:40]} 13. Be3 {[%emt 0:00:38]} Re8 {[%emt 0:01:15] The position is equal.} 14. b3 {[%emt 0:04:30]} (14. b4 $5 {[%cal Rb4b5]}) 14... Bf8 {[%emt 0:11:45]} 15. Na4 {[%emt 0:04:51] [#]} Nd7 $146 {[%emt 0:10:48][%cal Bf6d7,Bd7f8,Bf8e6][%mdl 32]} ({Predecessor:} 15... Nh7 16. Bc5 Ng5 17. Bxf8 Kxf8 18. Nc5 Ke7 19. b4 Rb8 20. Kh2 Ne6 21. Nd3 f6 {½-½ (30) Kopec,D (2405)-Gullaksen,E (2325) London 1997}) 16. Rd2 {[%emt 0:20:34]} Bg7 {[%emt 0:03:36]} (16... Bb4 $5 {[%cal Rb4d2]}) 17. Rad1 {[%emt 0:00:26][%cal Ba1d1,Bd1d8,Bd8d6][%mdl 32]} Nf8 {[%emt 0:00:58]} 18. Rd8 {[%emt 0:09:51]} Rxd8 {[%emt 0:04:29]} 19. Rxd8 {[%emt 0:00:07]} f5 $1 {[%emt 0:17:15]} 20. Rd6 {[%emt 0:11:14] Against Bf6} Ne6 {[%emt 0:02:27]} 21. Nc5 $36 {[%emt 0:05:50][%mdl 2048] White is pushing.} Kf7 {[%emt 0:01:35] Loses the game.} (21... Nf8 $14) 22. Nxb7 $1 $18 {[%emt 0:10:45]} Ke7 {[%emt 0:09:59] [#]} (22... e4 $142) 23. Rxc6 $1 {[%emt 0:01:16]} Bxb7 {[%emt 0:00:13] [#]} 24. Rxe6+ $1 {[%emt 0:00:04][%mdl 576] Discovered Attack} Kxe6 {[%emt 0:00:01]} 25. Bxb7 {[%emt 0:00:06][%mdl 4096] Endgame KRB-KB} Rd8 {[%emt 0:01:17]} 26. Bd5+ {[%emt 0:00:01]} Kd6 {[%emt 0:00:27]} 27. Bxa7 {[%emt 0:00:06] Threatens to win with a4. A strong pair of Bishops.} e4 {[%emt 0:00:43]} (27... Bf8 $142 28. a4 Kc7) 28. b4 {[%emt 0:00:31][%cal Bb3b4,Bb4b5][%mdl 32] And now a4 would win.} Bc3 {[%emt 0:00:25]} 29. Bc5+ {[%emt 0:02:04]} Ke5 {[%emt 0:01:09]} 30. b5 {[%emt 0:04:02]} Bd4 {[%emt 0:01:42]} 31. Bb4 {[%emt 0:02:55]} Rd7 {[%emt 0:01:26]} 32. a4 {[%emt 0:00:18] Weighted Error Value: White=0.13 (very precise) /Black=0.38} 1-0

[Event "FIDE WY-U16 Olympuad 2022"]
[Site "Nakhchivan"]
[Date "2022.10.03"]
[Round "2.18"]
[White "Celik, Hasan Huseyin"]
[Black "Tenuunbold, Battulga"]
[Result "1-0"]
[ECO "D45"]
[WhiteElo "2323"]
[BlackElo "2178"]
[Annotator "TA"]
[PlyCount "103"]
[EventDate "2022.10.02"]
[EventType "team-tourn"]
[EventCountry "AZE"]
[SourceTitle "playchess.com"]
[Source "ChessBase"]
[SourceQuality "1"]
[WhiteTeam "Turkey"]
[BlackTeam "Mongolia"]
[WhiteTeamCountry "TUR"]
[BlackTeamCountry "MGL"]
[TimeControl "40/5400+30:1800+30"]

{[%evp 21,103,2,7,0,0,4,51,42,58,42,49,36,55,58,54,50,60,37,78,73,120,100,128,96,149,133,135,134,125,117,181,188,154,118,111,111,121,121,138,121,128,120,144,142,151,172,161,147,169,133,154,117,128,121,152,159,129,45,228,178,319,318,287,233,285,267,286,282,271,261,323,318,646,584,510,458,12835,12836,12836,12836,12835,12835,12835,12835]} 1. d4 {[%emt 0:00:05]} d5 {[%emt 0:00:06]} 2. c4 {[%emt 0:00:21]} c6 {[%emt 0:00:10]} 3. Nf3 {[%emt 0:00:12]} Nf6 {[%emt 0:00:08]} 4. Nc3 {[%emt 0:00:13]} e6 {[%emt 0:00:13]} 5. e3 {[%emt 0:00:08]} Nbd7 {[%emt 0:00:22]} 6. Qc2 {[%emt 0:00:11]} Bd6 {[%emt 0:00:13]} 7. Bd3 {[%emt 0:00:11]} dxc4 {[%emt 0:00:51]} 8. Bxc4 {[%emt 0:00:01]} b5 {[%emt 0:00:09]} 9. Be2 {[%emt 0:00:06]} O-O {[%emt 0:00:21]} 10. O-O {[%emt 0:00:03]} a6 {[%emt 0:00:55]} 11. Rd1 {[%emt 0:07:29]} Qc7 {[%emt 0:00:39]} 12. b3 {[%emt 0:06:52] [#] D46: Semi-Slav: 5 e3 Nbd7 6 Bd3, Black avoids the Meran.} c5 $146 {[%emt 0:08:24]} ({Predecessor:} 12... Bb7 13. Ne4 Nxe4 14. Qxe4 Be7 15. Bd3 g6 16. Bb2 c5 17. Qg4 Bf6 18. Rac1 Rac8 19. Bb1 Qb8 {0-1 (36) Mikhalchishin,A (2529)-Dreev,A (2657) Sibenik 2008}) 13. dxc5 {[%emt 0:01:12]} Nxc5 {[%emt 0:00:19] [#]} (13... Qxc5 $11 14. Qd3 Be7) 14. Bxb5 $1 $14 {[%emt 0:10:18][%cal Oh2h3] White is slightly better.} Bb7 {[%emt 0:14:34]} ({Don't take} 14... axb5 15. Nxb5 Bxh2+ 16. Nxh2 $16) 15. Bc4 {[%emt 0:05:10]} Bxf3 {[%emt 0:03:28]} 16. gxf3 {[%emt 0:00:01][%cal Bg2f3,Bf3f4][%mdl 32]} Bxh2+ {[%emt 0:00:09]} 17. Kg2 {[%emt 0:00:05]} Be5 {[%emt 0:00:52]} 18. Bb2 {[%emt 0:00:50]} Rfd8 {[%emt 0:06:49]} 19. Qe2 {[%emt 0:06:06]} Qe7 {[%emt 0:03:58][%cal Of6d5]} 20. f4 $1 {[%emt 0:02:57]} Bd6 {[%emt 0:04:46] [#]} (20... Bxc3 $142 21. Bxc3 Nce4) 21. Qf3 $1 $16 {[%emt 0:08:27]} Rac8 {[%emt 0:06:03]} 22. Ne2 {[%emt 0:08:14]} Bb8 {[%emt 0:22:50]} (22... g6 $142) 23. Rxd8+ {[%emt 0:03:39]} Rxd8 {[%emt 0:00:23]} 24. Nd4 {[%emt 0:00:05] Nc6 is the strong threat.} Qe8 {[%emt 0:01:27]} 25. Qc6 {[%emt 0:06:10]} e5 {[%emt 0:09:55]} (25... Nfd7 $16) 26. Qxe8+ $18 {[%emt 0:00:55]} Rxe8 {[%emt 0:00:05]} 27. Nc6 {[%emt 0:00:48][%cal Rf4e5]} exf4 {[%emt 0:00:20]} 28. Nxb8 {[%emt 0:00:09] White is more active.} Rxb8 {[%emt 0:01:09]} 29. exf4 {[%emt 0:01:21]} Rd8 {[%emt 0:00:05]} 30. Bc3 {[%emt 0:02:37]} Nd5 {[%emt 0:03:34]} 31. Ba5 {[%emt 0:02:48]} Rd7 {[%emt 0:00:11] [#]} 32. Kf3 {[%emt 0:01:31]} Nf6 {[%emt 0:02:18]} 33. Re1 {[%emt 0:02:32]} h5 {[%emt 0:01:07]} 34. Re5 {[%emt 0:06:00]} Nd3 {[%emt 0:00:37]} 35. Re3 {[%emt 0:00:12]} ({Avoid the trap} 35. Bxa6 $2 Nxe5+ 36. fxe5 Ra7 $19) 35... Nc5 {[%emt 0:00:19]} 36. Bb6 {[%emt 0:08:11] A strong pair of Bishops.} Ne6 {[%emt 0:00:32]} 37. f5 {[%emt 0:01:43]} ({Don't go for} 37. Bxa6 $2 Rd6 38. Bc4 Rxb6 $19) 37... Nd4+ {[%emt 0:00:52]} 38. Bxd4 {[%emt 0:01:25]} Rxd4 {[%emt 0:00:04]} 39. Bxa6 $16 {[%emt 0:00:09][%mdl 4096] Endgame KRB-KRN} (39. a4 $16) 39... h4 $2 {[%emt 0:00:17] This move loses the game for Black.} (39... Rd5 $1 $14) 40. Bc4 {[%emt 0:01:31]} Nd5 {[%emt 0:03:59]} (40... h3 {keeps fighting.} 41. a4 Rh4) 41. Bxd5 $18 {[%emt 0:32:10]} Rxd5 {[%emt 0:30:04] KR-KR} 42. Re2 {[%emt 0:00:24]} Rxf5+ {[%emt 0:04:12]} 43. Kg4 {[%emt 0:00:01]} Rd5 {[%emt 0:00:13]} 44. Kxh4 {[%emt 0:00:07]} Kf8 {[%emt 0:00:02]} 45. Kg4 {[%emt 0:00:12]} g6 {[%emt 0:00:17]} 46. Kf4 {[%emt 0:00:38]} f5 $2 {[%emt 0:00:20]} (46... Rf5+ 47. Ke4 Ke7) 47. Kg5 {[%emt 0:00:14] aiming for f4. White is clearly winning.} Kf7 {[%emt 0:00:06]} 48. Rc2 {[%emt 0:00:12]} Rd4 {[%emt 0:00:52]} (48... f4+ $142 49. Kxf4 Ke6) 49. f4 {[%emt 0:01:07]} Rd3 {[%emt 0:00:31]} 50. Rc7+ {[%emt 0:00:08]} Ke6 {[%emt 0:00:07]} 51. Rc6+ {[%emt 0:00:01]} Kf7 {[%emt 0:00:41]} 52. Rf6+ {[%emt 0:00:03] Weighted Error Value: White=0.11 (very precise) /Black=0.39} 1-0

[Event "FIDE WY-U16 Olympuad 2022"]
[Site "Nakhchivan"]
[Date "2022.10.03"]
[Round "2.22"]
[White "Cebotari, Stanislav"]
[Black "Kairbekova, Amina"]
[Result "0-1"]
[ECO "A06"]
[WhiteElo "2047"]
[BlackElo "2305"]
[Annotator "TA"]
[PlyCount "66"]
[EventDate "2022.10.02"]
[EventType "team-tourn"]
[EventCountry "AZE"]
[SourceTitle "playchess.com"]
[Source "ChessBase"]
[SourceQuality "1"]
[WhiteTeam "Moldova"]
[BlackTeam "Kazakhstan"]
[WhiteTeamCountry "MDA"]
[BlackTeamCountry "KAZ"]
[TimeControl "40/5400+30:1800+30"]

{[%evp 9,66,6,24,12,19,-14,14,38,29,26,35,-6,-10,-70,-27,-17,-16,-45,0,-133,-52,-92,-76,-73,-83,-90,-89,-151,-128,-203,-194,-172,-153,-246,-248,-235,-236,-235,-220,-377,-384,-384,-366,-470,-400,-422,-439,-350,-318,-769,-765,-756,-751,-718,-594,-1766,-571,-554,-514]} 1. Nf3 {[%emt 0:00:01]} d5 {[%emt 0:00:05]} 2. g3 {[%emt 0:00:03]} Nd7 {[%emt 0:00:07]} 3. Bg2 {[%emt 0:00:05]} e5 {[%emt 0:00:08]} 4. d3 {[%emt 0:00:03]} Ngf6 {[%emt 0:00:17]} 5. O-O {[%emt 0:00:29]} Bd6 {[%emt 0:00:07]} 6. c4 {[%emt 0:00:36] A07: Réti Opening: New York and Capablanca Systems.} c6 {[%emt 0:01:17]} 7. Nc3 {[%emt 0:00:36]} h6 {[%emt 0:03:12]} 8. cxd5 {[%emt 0:03:09] The position is equal.} cxd5 {[%emt 0:00:40]} 9. Nd2 {[%emt 0:00:16]} Nb6 {[%emt 0:01:00] [#]} 10. a3 $146 {[%emt 0:04:15]} (10. a4 $5 {[%cal Ra4a5]}) ({Predecessor:} 10. e4 Be6 11. exd5 Nfxd5 12. Nde4 O-O 13. d4 exd4 14. Nxd5 Bxd5 15. Qxd4 Be7 16. Be3 {0-1 (32) Weber,U (2346)-Sandipan,C (2543) Tegernsee 2021}) 10... O-O {[%emt 0:01:47]} 11. b4 {[%emt 0:01:13]} (11. a4 $11) 11... a5 {[%emt 0:02:13]} 12. bxa5 {[%emt 0:03:28]} Rxa5 {[%emt 0:00:15]} 13. Nb3 {[%emt 0:00:45]} Ra8 {[%emt 0:00:12]} (13... Na4 $5 {[%cal Ra4c3]} 14. Bd2 Nxc3 15. Bxc3 Ra8 $15) 14. Bb2 {[%emt 0:01:22] [#]} (14. a4 $11 {remains equal.}) 14... Bd7 {[%emt 0:01:22]} (14... d4 $1 $17 {[%cal Rd4c3]} 15. Ne4 Nxe4 16. Bxe4 Bh3 17. Bxb7 Na4) 15. Qd2 {[%emt 0:04:54]} Qe7 {[%emt 0:14:00]} 16. Rfb1 {[%emt 0:08:42]} Rfc8 {[%emt 0:14:54]} 17. Nd1 {[%emt 0:08:55]} Na4 {[%emt 0:00:23]} 18. Bc1 {[%emt 0:01:42]} ({White should try} 18. Bc3) 18... Rc7 {[%emt 0:06:06] Black has more active pieces. The white rooks are badly placed.} 19. Na5 {[%emt 0:05:54]} (19. Qe1 $17) 19... Be6 $19 {[%emt 0:00:39]} 20. Qe1 {[%emt 0:10:05]} Rac8 {[%emt 0:01:52]} 21. Bd2 {[%emt 0:03:09]} (21. Be3 $17 {was worth a try.}) 21... b6 {[%emt 0:00:43]} 22. Nb3 {[%emt 0:00:15]} d4 {[%emt 0:02:15][%cal Bd5d4,Bd4c3,Bc3c2][%mdl 32]} ({Inferior is} 22... Bxa3 23. f4 e4 24. Nd4 $17) 23. Bb4 {[%emt 0:04:07]} Nc3 {[%emt 0:04:32]} 24. Nxc3 $2 {[%emt 0:01:28]} (24. Rb2) 24... Bxb4 {[%emt 0:02:49]} ({Avoid the trap} 24... dxc3 $2 25. Nc1 $19) 25. axb4 {[%emt 0:00:35] Threatens to win with Nb5.} dxc3 {[%emt 0:04:17]} 26. Nc1 {[%emt 0:00:20]} Ra7 {[%emt 0:00:32]} 27. Rxa7 {[%emt 0:03:31]} Qxa7 {[%emt 0:00:04]} 28. b5 {[%emt 0:00:30]} Qa5 {[%emt 0:08:49] And now ...c2 would win.} 29. Bc6 $2 {[%emt 0:06:12]} (29. Kf1) 29... c2 {[%emt 0:00:37][%csl LRb1,LRe1] Black is clearly winning.} 30. Rb4 {[%emt 0:00:06] [#]} Rxc6 $1 {[%emt 0:01:35][%mdl 512]} 31. bxc6 {[%emt 0:00:06]} Nd5 {[%emt 0:00:03]} 32. Na2 {[%emt 0:00:30]} Nxb4 {[%emt 0:00:31]} (32... Qxa2 $142 33. Rb5 Qa3) 33. Nxb4 {[%emt 0:00:05] [#]} Qxb4 $3 {[%emt 0:00:22][%mdl 512] Weighted Error Value: White=0.74/Black=0.29 (precise)} 0-1